Cogmind - Beta 14 @@@ ROGUE MODE // 2024.11.20 @ 00:46:47 Player: WazdakkaGutsmek Result: Destroyed by Combat Programmer with EMDS Performance ------------- Evolutions (9) 4500 Regions Visited (23) 4600 Robots Destroyed (353) 1765 Value Destroyed (17931) 17931 Prototype IDs (36) 720 Alien Tech Used (0) 0 Bonus (9357) 9357 TOTAL SCORE: 38873 Bonus ------- High Alert Combat Kills 2280 Follower Combat Kills 2246 Entered Garrisons 1400 Used RIF Installer 4000 Entered DSFs 500 Aligned with FarCom 300 Friendly Fire -1369 Cogmind --------- Core Integrity 0/1600 Matter 194/300 Energy 99/100 System Corruption 6% Temperature Cool (0) Movement Core (50) Location -1/Command Parts ------- > --- POWER (2) -------- (None) > --- PROPULSION (8) --- (None) > --- UTILITY (13) ----- Advanced Target Analyzer Advanced Target Analyzer System Shield Relay Coupler [NC] (26) > --- WEAPON (2) ------- (None) > --- INVENTORY (5) ---- Backup Power VII Backup Power VII Advanced Melee Analysis Suite Backup Laser VII Peak State ------------ > --- POWER ------------ Fission Core Light Antimatter Reactor > --- PROPULSION ------- Armored Medium Treads Improved Heavy Treads Biometal Medium Treads > --- UTILITY ---------- Advanced Power Amplifier Advanced Heat Sink Advanced Heat Sink Huge Storage Unit Advanced Target Analyzer Advanced Target Analyzer Improved Heavy Armor Plating Graphene Brace Relay Coupler [NC] Relay Coupler [Grunt] Relay Coupler [Duelist] Relay Coupler [Sentry] > --- WEAPON ----------- Gamma Rifle Gamma Rifle > --- INVENTORY -------- Improved Treads Improved Treads Matter Compressor Relay Coupler [Cutter] Relay Coupler [Demolisher] Gamma Rifle Heavy Gatling Laser Heavy Gatling Laser Compact HERF Cannon Hardcell Cannon Heavy Gauss Cannon Heavy Gauss Cannon Heavy Rocket Launcher Smartbomb Launcher Advanced Remote Datajack Advanced Remote Datajack Field Lobotomy Kit [Rating: 127] Favorites ----------- Power Reinforced Fission Core Engine Improved Ion Engine Power Core Reinforced Fission Core Reactor Light Antimatter Reactor Propulsion Light Treads Treads Light Treads Leg Carbon-fiber Leg Wheel Wheel Hover Unit Antigrav System Flight Unit Impulse Thruster Array Utility Huge Storage Unit Device Advanced Heat Sink Storage Huge Storage Unit Processor Advanced Target Analyzer Hackware Relay Coupler [Sentry] Protection Improved Medium Armor Plating Weapon Plasma Cannon Energy Gun Heavy Gatling Laser Energy Cannon Plasma Cannon Ballistic Gun Assault Rifle Ballistic Cannon Gauss Cannon Launcher Missile Launcher Special Weapon Remote Datajack Impact Weapon Flail Build | -11 -10 -10 -10 -9 -8 -8 -8 -8 -7 -7 -6 -6 -5 -5 -5 -5 -4 -4 -3 -2 -2 -1 -1 ------- Run | Yrd Mat Min Exi Min Mat Gar Mat Gar Fac Gar Fac Gar Fac Gar Fac Gar Fac Gar Res Res DSF Acc Com Slots Evolved 18 | . . . . . 4 . . . 2 . 2 . 2 . . . 2 . 2 2 . 2 . Power 1 | . . . . . . . . . . . 1 . . . . . . . . . . . . Propulsion 6 | . . . . . 2 . . . . . . . . . . . . . . 2 . 2 . Utility 11 | . . . . . 2 . . . 2 . 1 . 2 . . . 2 . 2 . . . . Weapon . | . . . . . . . . . . . . . . . . . . . . . . . . Parts Attached 404 | . 13 . 1 4 27 16 27 2 3 24 52 14 13 14 31 30 18 18 88 2 . 5 2 Power 42 | . 1 . . . 4 1 3 . 2 2 6 1 2 . 3 1 1 1 13 . . 1 . Engine 11 | . 1 . . . 3 1 2 . 2 1 . . . . . . . . . . . 1 . Core 16 | . . . . . 1 . 1 . . 1 5 1 2 . 3 1 . . 1 . . . . Reactor 15 | . . . . . . . . . . . 1 . . . . . 1 1 12 . . . . Propulsion 82 | . 2 . . . 9 1 9 . . 11 9 3 1 1 8 6 3 . 17 . . 1 1 Treads 49 | . 2 . . . 9 1 4 . . 5 . 3 1 . 8 6 3 . 7 . . . . Leg 3 | . . . . . . . . . . 3 . . . . . . . . . . . . . Wheel 19 | . . . . . . . 5 . . 2 7 . . 1 . . . . 4 . . . . Hover 7 | . . . . . . . . . . 1 2 . . . . . . . 3 . . . 1 Flight 4 | . . . . . . . . . . . . . . . . . . . 3 . . 1 . Utility 109 | . 4 . 1 . 3 4 6 . 1 6 14 3 5 5 11 10 9 7 16 1 . 3 . Device 37 | . 2 . . . . 2 . . 1 . 2 . 2 3 5 5 5 3 6 1 . . . Storage 9 | . 1 . 1 . . . 1 . . . 2 . 1 . . . 1 . 2 . . . . Processor 6 | . . . . . . . . . . . . . . . 2 . 1 . 3 . . . . Hackware 26 | . . . . . . 2 2 . . 2 4 2 1 . 2 3 . 4 1 . . 3 . Protection 31 | . 1 . . . 3 . 3 . . 4 6 1 1 2 2 2 2 . 4 . . . . Artifact . | . . . . . . . . . . . . . . . . . . . . . . . . Weapon 171 | . 6 . . 4 11 10 9 2 . 5 23 7 5 8 9 13 5 10 42 1 . . 1 Energy Gun 41 | . 2 . . . 2 . 1 . . 2 6 . . . 5 3 2 2 16 . . . . Energy Cannon 45 | . 2 . . 2 3 3 2 1 . 2 6 2 3 4 2 2 1 4 6 . . . . Ballistic Gun 2 | . 2 . . . . . . . . . . . . . . . . . . . . . . Ballistic Cannon 23 | . . . . . 3 2 2 . . . 2 . . . . 2 2 . 10 . . . . Launcher 28 | . . . . 2 3 3 2 . . 1 2 3 2 3 . 3 . . 4 . . . . Special Weapon 31 | . . . . . . 2 1 1 . . 7 2 . 1 2 3 . 4 6 1 . . 1 Impact Weapon 1 | . . . . . . . 1 . . . . . . . . . . . . . . . . Slashing Weapon . | . . . . . . . . . . . . . . . . . . . . . . . . Piercing Weapon . | . . . . . . . . . . . . . . . . . . . . . . . . Special Melee Weapon . | . . . . . . . . . . . . . . . . . . . . . . . . Unidentified Prototypes 13 | . 1 . . . 3 . 1 . . . 3 . . . 1 1 . . 3 . . . . Corrupted Parts 2 | . . . . . . . . . . . 1 . . . 1 . . . . . . . . System Corruption 14 | . . . . . . . . . . . 10 . . . 4 . . . . . . . . Parts Lost 148 | . 2 . . . 12 3 4 . . 10 13 1 8 5 7 14 7 2 46 . 2 5 7 Power 18 | . . . . . 1 . 1 . . 1 . . 1 . 2 1 1 . 8 . . 2 . Propulsion 47 | . . . . . 5 2 1 . . 7 6 . 2 1 1 5 2 . 12 . 1 1 1 Utility 54 | . . . . . 2 1 1 . . . 5 1 4 4 3 6 3 2 15 . 1 1 5 Weapon 29 | . 2 . . . 4 . 1 . . 2 2 . 1 . 1 2 1 . 11 . . 1 1 Highest Loss Streak 10 | . 2 . . . 10 1 4 . . 4 4 1 8 2 2 6 4 1 6 . 2 2 4 To Critical Strikes . | . . . . . . . . . . . . . . . . . . . . . . . . Average Slot Usage (%) 81 | . 89 100 100 98 71 71 84 100 84 85 86 82 68 72 78 84 83 89 81 48 49 38 31 Engine 3 | . 14 14 14 14 7 9 2 . 6 3 2 . . . . . . . . . . . . Core 4 | . . . . . 1 . 6 9 . 1 7 6 5 11 9 10 7 5 1 . . . . Reactor 1 | . . . . . . . . . . . 2 6 3 . . . 2 5 5 4 4 1 . Treads 12 | . 2 28 28 28 25 16 22 . . 8 5 13 14 6 16 15 17 15 9 . . . . Leg 1 | . 25 . . . . . . . . 4 . . . . . . . . . . . . . Wheel 3 | . . . . . . . 6 36 30 6 12 7 . . 1 . . . . . . . . Device 11 | . 2 14 14 14 5 7 9 9 7 7 6 6 5 15 12 17 20 26 14 7 7 4 3 Storage 7 | . 14 14 14 14 9 9 10 9 7 7 6 6 6 6 5 5 8 5 6 . . . . Processor 2 | . . . . . . . . . . . . . . . 6 5 5 5 8 13 13 10 8 Hackware 8 | . . . . . . . 2 9 7 13 16 6 10 5 5 11 5 9 18 13 13 13 18 Protection 7 | . 3 . . . 4 11 8 9 7 14 7 16 10 11 6 3 4 5 4 . . . . Energy Gun 3 | . 2 . . . 4 . 5 9 7 7 7 . . . 5 4 6 1 4 . . . . Energy Cannon 5 | . 9 28 28 26 7 7 7 8 7 5 2 6 6 6 3 1 . 4 1 . . . . Ballistic Cannon 1 | . . . . . 4 5 1 . . . 1 . . . . 3 3 . 1 . . . . Special Weapon 1 | . . . . . . 2 2 . . . . 1 . 3 1 . . 4 . 2 4 2 . Peak Build Rating 127 | . 11 11 12 13 27 31 36 35 37 52 67 80 89 91 106 106 104 104 127 88 88 79 78 Average Rating 60 | . 7 11 11 12 18 24 28 35 34 44 55 70 77 71 76 86 94 100 104 83 82 70 41 On Entrance 51 | 6 6 11 11 12 13 19 24 35 35 37 47 64 75 89 53 106 92 98 104 77 88 71 57 Naked Turns . | . . . . . . . . . . . . . . . . . . . . . . . . Heaviest Build 237 | 11 26 25 55 55 71 72 105 65 70 83 150 162 173 173 147 156 237 227 162 15 15 14 9 Greatest Support 137 | 20 40 40 40 40 80 60 80 48 48 60 60 100 100 88 109 109 109 77 137 31 31 32 16 Greatest Overweight (x) 42 | . 1 . 1 1 3 3 7 1 1 26 13 5 2 11 11 5 4 2 42 . . . . Average Overweight (x) 1 | . . . . 1 . 1 . 1 1 2 3 2 1 5 5 1 1 1 1 . . . . Largest Inventory Capacity 25 | . 10 10 20 20 20 20 20 20 20 20 25 25 25 25 25 25 25 25 25 5 5 5 5 Average Capacity 21 | . 9 10 11 20 20 20 20 20 20 20 24 25 25 25 25 25 25 25 24 5 5 5 5 Most Carried 25 | . 7 5 7 11 20 20 20 18 20 20 25 25 25 21 23 24 25 25 21 5 5 5 5 Average Carried 17 | . 4 5 5 9 14 18 18 18 16 19 19 24 23 18 19 22 23 22 15 4 5 4 4 Final Capacity 25 | 8 10 10 20 20 20 20 20 20 20 20 25 25 25 25 25 25 25 25 5 5 5 5 5 Final Carried 24 | 6 5 5 6 10 15 18 18 18 20 20 23 24 19 17 22 24 23 20 5 5 5 2 4 Class Distribution -------------------- 32% | Bothacker-Mutant 25% | Mutant 23% | Botlord-Mutant 17% | Scavenger-Mutant Dominant Class ---------------- Mutant | -10/Materials Mutant | -10/Mines Mutant | -10/Exiles Mutant | -9/Mines Mutant | -8/Materials Scavenger-Mutant | -8/Garrison Bothacker-Mutant | -8/Materials Mutant | -8/Garrison Mutant | -7/Factory Bothacker-Mutant | -7/Garrison Bothacker-Mutant | -6/Factory Bothacker-Mutant | -6/Garrison Bothacker-Mutant | -5/Factory Botlord-Mutant | -5/Garrison Bothacker-Mutant | -5/Factory Scavenger-Mutant | -5/Garrison Scavenger-Mutant | -4/Factory Botlord-Mutant | -4/Garrison Botlord-Mutant | -3/Research Bothacker-Mutant | -2/Research Bothacker-Mutant | -2/DSF Bothacker-Mutant | -1/Access Mutant | -1/Command Resources | -11 -10 -10 -10 -9 -8 -8 -8 -8 -7 -7 -6 -6 -5 -5 -5 -5 -4 -4 -3 -2 -2 -1 -1 ----------- Run | Yrd Mat Min Exi Min Mat Gar Mat Gar Fac Gar Fac Gar Fac Gar Fac Gar Fac Gar Res Res DSF Acc Com Matter Collected 8702 | 149 240 . . 239 713 422 543 25 20 334 953 426 76 709 361 568 479 710 1540 . . 148 47 Remotely . | . . . . . . . . . . . . . . . . . . . . . . . . Salvage Created 13763 | . 531 . . 30 1435 494 972 135 112 993 1808 597 389 656 1294 881 495 347 2594 . . . . Parts 647 | . 36 . . 4 93 32 47 7 2 39 80 28 15 23 54 27 17 13 130 . . . . Haulers Intercepted 8 | . 1 . . . 3 . 3 . . . 1 . . . . . . . . . . . . Recyclers Shooed 11 | . . . . . 1 . . . . . 6 . 1 . 1 . . . 2 . . . . Parts Field Recycled . | . . . . . . . . . . . . . . . . . . . . . . . . Retrieved Matter . | . . . . . . . . . . . . . . . . . . . . . . . . Parts Self-Destructed . | . . . . . . . . . . . . . . . . . . . . . . . . Prevented . | . . . . . . . . . . . . . . . . . . . . . . . . Kills | -11 -10 -10 -10 -9 -8 -8 -8 -8 -7 -7 -6 -6 -5 -5 -5 -5 -4 -4 -3 -2 -2 -1 -1 ------- Run | Yrd Mat Min Exi Min Mat Gar Mat Gar Fac Gar Fac Gar Fac Gar Fac Gar Fac Gar Res Res DSF Acc Com Combat Hostiles Destroyed 288 | . 12 . . 5 24 20 16 5 2 21 30 17 10 15 23 28 13 6 41 . . . . Guns 90 | . 9 . . . 5 . 1 5 1 8 12 . . . 13 12 8 1 15 . . . . Cannons 107 | . 1 . . 3 12 12 9 . 1 9 10 5 3 6 8 7 4 4 13 . . . . AOE 74 | . 2 . . 2 7 8 6 . . 1 6 12 6 8 . 7 . . 9 . . . . Classes Destroyed 21 | . 6 . . 1 6 2 . . . 1 1 1 1 . 1 . . . 1 . . . . Worker 16 | . . . . . 3 . 4 . . . 6 . . . . . . . 3 . . . . Builder 18 | . 1 . . . 6 . 2 . . . 2 . . . 2 . . . 5 . . . . Tunneler 2 | . 1 . . . . . 1 . . . . . . . . . . . . . . . . Hauler 8 | . 1 . . . 3 . 3 . . . 1 . . . . . . . . . . . . Recycler 9 | . . . . . 2 . . . . . 2 . 1 . . . . . 4 . . . . Mechanic 1 | . . . . . . . . . . . . . 1 . . . . . . . . . . Operator 1 | . . . . . . . . . . . 1 . . . . . . . . . . . . Watcher 8 | . 2 . . . 1 . 3 . . . 1 . . . . . . . 1 . . . . Swarmer 74 | . 3 . . 3 3 12 . 3 . 6 1 10 5 8 3 9 3 3 2 . . . . Saboteur 1 | . . . . . . . . . . . . 1 . . . . . . . . . . . Grunt 93 | . 9 . . . 12 4 11 1 . . 14 5 . 4 7 11 4 2 9 . . . . Brawler 4 | . . . . . . . . . . . . . . . 1 2 . . 1 . . . . Duelist 5 | . . . . . . 3 . . . . . . . . 1 1 . . . . . . . Sentry 31 | . . . . . 4 1 4 1 1 7 2 1 1 1 1 2 2 . 3 . . . . Demolisher 3 | . . . . . . . . . . 1 2 . . . . . . . . . . . . Specialist 7 | . . . . . 2 . . . . 1 . . . . 3 . . . 1 . . . . Hunter 25 | . . . . . 2 . 2 . 1 4 6 . . . 3 3 . 2 2 . . . . Programmer 43 | . . . . . . 1 . . . 2 5 . 3 3 4 . 4 . 21 . . . . Heavy 3 | . . . . . 1 . . . . . . . . . 1 . . . 1 . . . . Behemoth 1 | . . . . . . . . . . . . . . . . . . . 1 . . . . Assembled 2 | . . . . 2 . . . . . . . . . . . . . . . . . . . Infiltrator 1 | . . . . . . . . . . . . . 1 . . . . . . . . . . Best Kill Streak 11 | . 3 . . 3 8 6 10 3 1 4 11 7 5 8 7 5 4 3 7 . . . . Combat Bots Only 8 | . 3 . . 3 4 6 4 3 1 4 6 7 5 8 7 5 4 3 4 . . . . Max Kills in Single Turn 6 | . 3 . . 2 4 3 4 1 1 1 6 4 5 6 1 2 1 1 3 . . . . Gunslinging . | . . . . . . . . . . . . . . . . . . . . . . . . Exploded 6 | . 2 . . 2 3 3 3 . . 1 3 4 5 6 . 2 . . 2 . . . . Melee . | . . . . . . . . . . . . . . . . . . . . . . . . Uniques/NPCs Destroyed . | . . . . . . . . . . . . . . . . . . . . . . . . Combat | -11 -10 -10 -10 -9 -8 -8 -8 -8 -7 -7 -6 -6 -5 -5 -5 -5 -4 -4 -3 -2 -2 -1 -1 -------- Run | Yrd Mat Min Exi Min Mat Gar Mat Gar Fac Gar Fac Gar Fac Gar Fac Gar Fac Gar Res Res DSF Acc Com Hostile Shots Fired 2653 | . 38 . . 3 181 35 104 20 58 400 240 75 111 83 217 173 120 33 571 . 15 122 54 Missed 884 | . 11 . . . 67 13 25 9 29 151 74 23 29 18 69 43 33 8 183 . 8 70 21 Damage Taken 33420 | . 464 . . 72 2103 413 1148 109 253 2667 3154 903 1832 1514 3485 2766 1306 324 8214 . 371 1005 1317 Core 5253 | . 105 . . . 211 28 141 14 22 351 279 78 106 185 328 192 165 15 1298 . 111 582 1042 Absorbed by Shields 805 | . . . . . . . . . . . . 30 . . . . 372 156 247 . . . . Redirected to Shielding 360 | . . . . . . . . . . . . . . . . . 50 . 310 . . . . Ignored by Resistances 167 | . . . . . . . 21 22 30 94 . . . . . . . . . . . . . Regen/Repaired (Parts) 82 | . . . . . . . . . . . 82 . . . . . . . . . . . . Core Remaining (%) 53 | 100 . . . 58 . . . 28 . 46 . 58 . . . 18 . 84 . . 92 . . Volleys Fired 1068 | . 48 . . 5 89 61 67 24 11 85 116 43 23 50 87 73 38 52 192 1 . 2 1 Largest 2 | . 2 . . 2 2 2 2 2 2 2 2 2 2 2 2 2 2 2 2 1 . 1 1 Hottest 205 | . 136 . . 136 136 160 160 141 141 145 155 120 140 180 200 200 205 205 205 10 . 10 . Shots Fired 1766 | . 74 . . 10 154 95 111 36 22 155 205 67 43 72 152 130 76 58 302 1 . 2 1 Gun 664 | . 66 . . . 36 . 25 15 11 80 106 . . . 74 62 46 7 136 . . . . Cannon 896 | . 8 . . 7 111 78 73 20 11 72 78 38 38 60 67 43 30 22 140 . . . . Launcher 94 | . . . . 3 7 4 8 . . 3 4 20 5 5 . 19 . . 16 . . . . Special 112 | . . . . . . 13 5 1 . . 17 9 . 7 11 6 . 29 10 1 . 2 1 Kinetic 321 | . 66 . . . 49 27 16 . . . 27 . . . . 20 28 . 88 . . . . Thermal 1133 | . 8 . . 7 91 51 82 35 22 152 157 37 38 58 131 64 48 25 127 . . . . Explosive 80 | . . . . 3 3 4 8 . . 3 4 10 5 5 . 19 . . 16 . . . . Electromagnetic 120 | . . . . . 11 . . . . . . 11 . 2 10 21 . 4 61 . . . . Robot Hit Streak 29 | . 14 . . 7 18 16 18 24 7 29 17 14 8 8 21 24 14 17 12 2 . 4 5 Robot Miss Streak 11 | . 3 . . 1 4 3 3 . 2 3 7 2 7 11 3 4 6 5 8 . . . . Penetration Max 1 | . . . . . 1 . . . . . . . . . . . . . 1 . . . . Secondary Targets 10 | . . . . . 2 . . . . 2 . . . . 3 1 1 . 1 . . . . Max Gunslinging Chain 1 | . . . . . 1 . . . . 1 . . . . 1 1 1 . 1 . . . . Shots Hit Robots 1194 | . 51 . . 6 106 53 77 20 13 111 130 39 33 41 128 92 58 45 187 1 . 2 1 Core Hits 742 | . 26 . . 5 65 34 48 6 5 36 95 35 29 55 59 79 35 12 118 . . . . Critical Kills 15 | . . . . . . . . . . 1 1 . 1 1 . . 2 2 7 . . . . Critical Parts Destroyed 9 | . . . . . . . . . . . . . . . . . 2 . 7 . . . . Critical Strikes 70 | . . . . . 6 2 4 2 1 7 12 . 1 1 2 2 4 2 24 . . . . Burn 23 | . . . . . 3 . 3 2 1 6 7 . . . 1 . . . . . . . . Meltdown 7 | . . . . . . . . . . 1 1 . 1 1 . . . 2 1 . . . . Destroy 17 | . . . . . . . . . . . . . . . . . 4 . 13 . . . . Blast 18 | . . . . . 3 2 1 . . . 4 . . . . 1 . . 7 . . . . Corrupt 5 | . . . . . . . . . . . . . . . 1 1 . . 3 . . . . Melee Attacks . | . . . . . . . . . . . . . . . . . . . . . . . . Impact . | . . . . . . . . . . . . . . . . . . . . . . . . Slashing . | . . . . . . . . . . . . . . . . . . . . . . . . Piercing . | . . . . . . . . . . . . . . . . . . . . . . . . Sneak Attacks . | . . . . . . . . . . . . . . . . . . . . . . . . Combat Hostiles . | . . . . . . . . . . . . . . . . . . . . . . . . Follow-up Attacks . | . . . . . . . . . . . . . . . . . . . . . . . . Damage Inflicted 41194 | . 883 . . 257 3530 1644 2666 388 264 2447 3968 1621 1833 2783 4072 4039 2038 715 8036 . . . 10 Guns 12654 | . 518 . . . 463 . 336 208 136 1095 1710 . . . 1962 1741 1518 134 2833 . . . . Cannons 17641 | . 107 . . 108 2148 1233 1286 180 128 1219 1300 525 982 1176 1987 788 520 581 3373 . . . . Explosions 10884 | . 255 . . 149 919 411 1044 . . 133 958 1096 851 1607 123 1510 . . 1828 . . . . Melee . | . . . . . . . . . . . . . . . . . . . . . . . . Ramming 15 | . 3 . . . . . . . . . . . . . . . . . 2 . . . 10 Kinetic 5672 | . 518 . . . 1025 382 300 . . . 394 . . . . 346 448 . 2259 . . . . Thermal 22971 | . 107 . . 108 1566 851 1322 388 264 2314 2616 495 982 1176 3837 1777 1590 560 3018 . . . . Explosive 9795 | . 255 . . 149 411 411 1044 . . 133 904 692 851 1607 . 1510 . . 1828 . . . . Electromagnetic 2741 | . . . . . 528 . . . . . 54 434 . . 235 406 . 155 929 . . . . Impact . | . . . . . . . . . . . . . . . . . . . . . . . . Slashing . | . . . . . . . . . . . . . . . . . . . . . . . . Piercing . | . . . . . . . . . . . . . . . . . . . . . . . . Highest Corruption 47 | . 4 4 4 4 . . . . . 1 16 16 5 5 7 6 . . 47 . . . 5 Average Corruption 9 | . 3 4 4 4 . . . . . 1 11 16 4 2 3 3 . . 22 . . . 3 Corruption Purged 21 | . . . . . . . . . . . . . . 6 1 14 . . . . . . . Corruption Blocked 6 | . . . . . . . . . . . . . . . . . 2 . 4 . . . . Effects 334 | . 9 2 5 17 . . . . . 20 75 40 2 8 23 2 . . 131 . . . . Message Errors 89 | . 3 1 2 4 . . . . . 5 18 12 1 2 9 1 . . 31 . . . . Matter Fused 67 | . 2 . 1 6 . . . . . 7 10 9 . 1 5 1 . . 25 . . . . Heat Flow Errors 34 | . 1 1 . 3 . . . . . 1 11 5 1 1 1 . . . 9 . . . . Energy Discharges 32 | . 1 . . 2 . . . . . 1 8 2 . 1 2 . . . 15 . . . . Parts Rejected 5 | . . . . . . . . . . . 2 . . 1 . . . . 2 . . . . Parts Fused 3 | . . . . . . . . . . . . 1 . . . . . . 2 . . . . Data Loss (minor) 33 | . . . . 2 . . . . . 2 9 5 . 1 2 . . . 12 . . . . Data Loss (major) 13 | . . . . . . . . . . . 5 . . . 1 . . . 7 . . . . Misfires 12 | . 1 . . . . . . . . 1 4 3 . . 1 . . . 2 . . . . Alerts 14 | . 1 . 2 . . . . . . 2 2 3 . . 1 . . . 3 . . . . Misdirections 10 | . . . . . . . . . . . 1 . . . . . . . 9 . . . . Weapon Failures 22 | . . . . . . . . . . 1 5 . . 1 1 . . . 14 . . . . Overload Shots 19 | . . . . . . . . . . . . . . 5 14 . . . . . . . . Overflow Damage 680 | . 20 . . 2 . 19 33 14 . 22 38 9 75 32 47 87 . . 282 . . . . Projectiles 382 | . . . . 2 . . 22 14 . 22 17 . 46 25 13 9 . . 212 . . . . Explosions 298 | . 20 . . . . 19 11 . . . 21 9 29 7 34 78 . . 70 . . . . Melee . | . . . . . . . . . . . . . . . . . . . . . . . . Knockbacks 51 | . . . . . 8 5 5 . . . 3 . . . . 1 6 . 23 . . . . Impact . | . . . . . . . . . . . . . . . . . . . . . . . . Kinetic 48 | . . . . . 8 5 4 . . . 3 . . . . 1 6 . 21 . . . . Secondary 3 | . . . . . . . 1 . . . . . . . . . . . 2 . . . . Self-Inflicted Damage 930 | . 118 . . 49 12 . . . . 93 . 47 64 299 187 14 . . 42 . . . 5 Shots 30 | . 2 . . 1 1 . . . . 3 . 2 2 13 3 1 . . 2 . . . . Rammed 2 | . . . . . . . . . . . . . . . . . . . 1 . . . 1 Targets Rammed 3 | . 1 . . . . . . . . . . . . . . . . . 1 . . . 1 Kicked 1 | . 1 . . . . . . . . . . . . . . . . . . . . . . Crushed . | . . . . . . . . . . . . . . . . . . . . . . . . Highest Temperature 479 | . 168 65 . 255 298 207 445 270 18 314 312 244 479 410 399 198 297 228 465 . . . . Average Temperature 98 | . 57 44 . 73 83 54 128 95 7 62 71 62 138 168 105 89 99 61 148 . . . . Received Heat Transfer 4122 | . 180 . . . 603 135 531 27 48 351 424 132 63 252 372 501 123 33 257 . . 36 54 Effects 16 | . . . . . 3 . 2 . . 1 . . 1 3 1 . . . 5 . . . . Shutdowns 3 | . . . . . . . . . . . . . 1 1 . . . . 1 . . . . Energy Bleed 3 | . . . . . . . . . . . . . . . . . . . 3 . . . . Interference 5 | . . . . . 3 . 1 . . 1 . . . . . . . . . . . . . Matter Decay 1 | . . . . . . . 1 . . . . . . . . . . . . . . . . Short Circuit 2 | . . . . . . . . . . . . . . . 1 . . . 1 . . . . Damage (minor) 2 | . . . . . . . . . . . . . . 2 . . . . . . . . . Siege Activations 1 | . . . . . . . . . . . . . . . . . . . 1 . . . . Total Turns 6 | . . . . . . . . . . . . . . . . . . . 6 . . . . Longest Duration 6 | . . . . . . . . . . . . . . . . . . . 6 . . . . Robots Corrupted 5 | . . . . . . . 1 . . . . . . . . 1 . . 3 . . . . Combat Hostiles 4 | . . . . . . . . . . . . . . . . 1 . . 3 . . . . Parts Fried 19 | . . . . . 2 . 2 . . . . . . . 1 2 . 1 11 . . . . Impact Corruptions 1 | . . . . . . . 1 . . . . . . . . . . . . . . . . Robots Melted 16 | . . . . . . . . . . 3 2 . 1 1 3 1 1 2 2 . . . . Combat Hostiles 13 | . . . . . . . . . . 3 2 . 1 1 2 1 1 1 1 . . . . Parts Melted 95 | . . . . . 3 6 8 5 5 16 14 3 2 5 11 2 6 1 8 . . . . Heat Transferred 36692 | . 185 . . 185 3157 1524 2862 942 620 4512 4764 733 1201 1047 5421 2937 2424 498 3680 . . . . Parts Sabotaged 8 | . . . . . . . . . . . 3 2 . . 1 . 2 . . . . . . Parts Stolen . | . . . . . . . . . . . . . . . . . . . . . . . . Parts Stripped . | . . . . . . . . . . . . . . . . . . . . . . . . Power Chain Reactions 2 | . . . . . 2 . . . . . . . . . . . . . . . . . . Alert | -11 -10 -10 -10 -9 -8 -8 -8 -8 -7 -7 -6 -6 -5 -5 -5 -5 -4 -4 -3 -2 -2 -1 -1 ------- Run | Yrd Mat Min Exi Min Mat Gar Mat Gar Fac Gar Fac Gar Fac Gar Fac Gar Fac Gar Res Res DSF Acc Com Peak Influence 1434 | . 393 64 . 94 427 1043 760 522 355 956 573 959 596 1136 899 1434 797 511 326 108 83 279 291 Initial 752 | . . 64 . . . 277 505 376 273 108 501 291 503 382 596 559 752 401 287 108 83 37 178 Average 452 | . 217 64 . 36 135 686 595 442 287 445 272 642 491 736 674 953 693 444 112 108 77 85 213 Maximum Alert Level 4 | . 1 . . . 2 3 3 2 1 3 2 3 2 4 3 4 3 2 1 . . 1 1 Low Security (%) 27 | . 35 100 . 100 64 . . . 15 6 47 . . . . . . . 85 100 100 92 24 Level 1 16 | . 64 . . . 33 21 . 15 84 41 14 20 5 4 . . . 10 14 . . 7 75 Level 2 36 | . . . . . 2 34 89 84 . 35 38 34 94 46 67 34 51 89 . . . . . Level 3 14 | . . . . . . 44 10 . . 16 . 44 . 43 32 17 48 . . . . . . Level 4 4 | . . . . . . . . . . . . . . 6 . 47 . . . . . . . Level 5 . | . . . . . . . . . . . . . . . . . . . . . . . . High Security . | . . . . . . . . . . . . . . . . . . . . . . . . Max Security . | . . . . . . . . . . . . . . . . . . . . . . . . Squads Dispatched 68 | . 4 . . 1 5 . 2 . . . 14 . 2 . 11 . 6 . 19 . 1 1 2 Investigation 4 | . 1 . . 1 . . . . . . . . . . . . . . 2 . . . . Extermination 17 | . . . . . . . . . . . 6 . 1 . 2 . 2 . 6 . . . . Reinforcement 34 | . 3 . . . 3 . 2 . . . 7 . . . 7 . . . 8 . 1 1 2 Assault 4 | . . . . . . . . . . . 1 . . . 2 . 1 . . . . . . Garrison 9 | . . . . . 2 . . . . . . . 1 . . . 3 . 3 . . . . Intercept . | . . . . . . . . . . . . . . . . . . . . . . . . Searches Triggered . | . . . . . . . . . . . . . . . . . . . . . . . . Construction Impeded 6 | . . . . . . . 1 . . . 2 . . . 1 . . . 2 . . . . Haulers Reinforced 5 | . . . . . . . . . . . 2 . . . 2 . . . 1 . . . . Active Scanning Responses . | . . . . . . . . . . . . . . . . . . . . . . . . Cargo Convoy Interrupts 1 | . . . . . . . . . . . . . . . . . . . 1 . . . . Alert ID Control Effect 22 | . . . . . . . . . . . . . . 1 10 . . 10 1 . . . . Stealth | -11 -10 -10 -10 -9 -8 -8 -8 -8 -7 -7 -6 -6 -5 -5 -5 -5 -4 -4 -3 -2 -2 -1 -1 --------- Run | Yrd Mat Min Exi Min Mat Gar Mat Gar Fac Gar Fac Gar Fac Gar Fac Gar Fac Gar Res Res DSF Acc Com Distress Signals 19 | . 1 . . . 3 . 3 . . . . . . . 1 . . 1 6 . . 4 . Communications Jammed . | . . . . . . . . . . . . . . . . . . . . . . . . Distress Signals . | . . . . . . . . . . . . . . . . . . . . . . . . Times Spotted 493 | . 18 . . 5 42 16 28 7 3 22 60 25 8 24 45 31 15 29 66 . 4 30 15 Peak Tracking Total 15 | . 5 . . 3 8 3 3 3 1 4 7 10 5 7 7 5 4 6 7 . 4 15 14 Tactical Retreats 27 | . 1 . . . 5 . 2 2 . . 1 . . . 1 . . . 7 . . 6 2 Traps | -11 -10 -10 -10 -9 -8 -8 -8 -8 -7 -7 -6 -6 -5 -5 -5 -5 -4 -4 -3 -2 -2 -1 -1 ------- Run | Yrd Mat Min Exi Min Mat Gar Mat Gar Fac Gar Fac Gar Fac Gar Fac Gar Fac Gar Res Res DSF Acc Com Traps Triggered 56 | . 4 . . . . 9 . 1 1 7 2 4 . 7 . 12 . 7 2 . . . . Indirectly 1 | . . . . . . . . . . . . 1 . . . . . . . . . . . Trap Hack Attempts . | . . . . . . . . . . . . . . . . . . . . . . . . Triggered . | . . . . . . . . . . . . . . . . . . . . . . . . Disarmed . | . . . . . . . . . . . . . . . . . . . . . . . . Reprogrammed . | . . . . . . . . . . . . . . . . . . . . . . . . Reused . | . . . . . . . . . . . . . . . . . . . . . . . . Traps Extracted . | . . . . . . . . . . . . . . . . . . . . . . . . Installed . | . . . . . . . . . . . . . . . . . . . . . . . . Triggered 3 | . . . . . . . . . . . 1 . . . . . . . 2 . . . . Machines | -11 -10 -10 -10 -9 -8 -8 -8 -8 -7 -7 -6 -6 -5 -5 -5 -5 -4 -4 -3 -2 -2 -1 -1 ---------- Run | Yrd Mat Min Exi Min Mat Gar Mat Gar Fac Gar Fac Gar Fac Gar Fac Gar Fac Gar Res Res DSF Acc Com Machines Disabled 57 | . 2 . . . 3 5 2 . 1 4 11 3 2 4 10 4 3 1 2 . . . . Max in Single Turn 6 | . 2 . . . 1 1 1 . 1 1 2 1 1 1 6 1 1 1 1 . . . . Garrison Access 1 | . . . . . . . . . . . . . . . . . . . . . . 1 . Garrison Relay 16 | . . . . . . 4 . . . 4 . 1 . 3 . 3 . 1 . . . . . Machines Repaired . | . . . . . . . . . . . . . . . . . . . . . . . . Machines Dismantled . | . . . . . . . . . . . . . . . . . . . . . . . . Machines Sabotaged . | . . . . . . . . . . . . . . . . . . . . . . . . Overloaded Fab Kills . | . . . . . . . . . . . . . . . . . . . . . . . . Hacking | -11 -10 -10 -10 -9 -8 -8 -8 -8 -7 -7 -6 -6 -5 -5 -5 -5 -4 -4 -3 -2 -2 -1 -1 --------- Run | Yrd Mat Min Exi Min Mat Gar Mat Gar Fac Gar Fac Gar Fac Gar Fac Gar Fac Gar Res Res DSF Acc Com Machines Accessed 50 | . 6 . 1 1 2 . 3 1 1 3 2 2 3 3 2 3 2 2 1 3 . 8 1 Terminals 35 | . 6 . . . 1 . 2 1 . 3 . 2 1 3 . 3 . 2 1 3 . 7 . Fabricators 1 | . . . . . . . . . . . . . . . . . 1 . . . . . . Repair Stations 4 | . . . . . . . . . . . 1 . 1 . 1 . . . . . . . 1 Recycling Units . | . . . . . . . . . . . . . . . . . . . . . . . . Scanalyzers . | . . . . . . . . . . . . . . . . . . . . . . . . Garrison Access 8 | . . . . . 1 . 1 . 1 . 1 . 1 . 1 . 1 . . . . 1 . Total Hacks 90 | . 18 . 1 1 5 . 8 2 1 4 4 4 5 5 3 5 2 3 1 3 . 12 3 Successful 39 | . 9 . 1 1 2 . 3 . 1 1 3 2 2 2 1 2 2 . . 1 . 4 2 Failed 51 | . 9 . . . 3 . 5 2 . 3 1 2 3 3 2 3 . 3 1 2 . 8 1 Catastrophic 11 | . . . . . . . 1 1 . . 1 . 1 1 . 2 . . 1 1 . 2 . Database Lockouts . | . . . . . . . . . . . . . . . . . . . . . . . . Manual 32 | . 19 . 1 . 3 . 6 . . . . . . . . . . . 1 . . 2 . Terminals 68 | . 18 . . . 3 . 7 2 . 4 . 4 2 5 . 5 . 3 1 3 . 11 . Fabricators 1 | . . . . . . . . . . . . . . . . . 1 . . . . . . Repair Stations 10 | . . . . . . . . . . . 3 . 2 . 2 . . . . . . . 3 Recycling Units . | . . . . . . . . . . . . . . . . . . . . . . . . Scanalyzers . | . . . . . . . . . . . . . . . . . . . . . . . . Garrison Access 9 | . . . . . 2 . 1 . 1 . 1 . 1 . 1 . 1 . . . . 1 . Terminal Hacks 16 | . 2 . 1 1 . . 1 . . 1 . 2 . 2 . 2 . . . 1 . 3 . Robot Analysis 2 | . 2 . . . . . . . . . . . . . . . . . . . . . . Open Door 6 | . . . . 1 . . . . . 1 . 1 . . . . . . . . . 3 . Open DSF 1 | . . . . . . . . . . . . . . . . . . . . 1 . . . Emergency Access Points 2 | . . . . . . . . . . . . 1 . 1 . . . . . . . . . Locate Traps 1 | . . . . . . . 1 . . . . . . . . . . . . . . . . Garrison Registry 1 | . . . . . . . . . . . . . . 1 . . . . . . . . . Patrol Navigation 1 | . . . . . . . . . . . . . . . . 1 . . . . . . . Security Stations 1 | . . . . . . . . . . . . . . . . 1 . . . . . . . Derelict Proto ID Bank 1 | . . . 1 . . . . . . . . . . . . . . . . . . . . Fabricator Hacks 1 | . . . . . . . . . . . . . . . . . 1 . . . . . . Network Status 1 | . . . . . . . . . . . . . . . . . 1 . . . . . . Repair Station Hacks 5 | . . . . . . . . . . . 2 . 1 . . . . . . . . . 2 Scan Component 3 | . . . . . . . . . . . 1 . 1 . . . . . . . . . 1 Repair 1 | . . . . . . . . . . . 1 . . . . . . . . . . . . Refit 1 | . . . . . . . . . . . . . . . . . . . . . . . 1 Recycling Unit Hacks . | . . . . . . . . . . . . . . . . . . . . . . . . Scanalyzer . | . . . . . . . . . . . . . . . . . . . . . . . . Garrison Access Hacks 8 | . . . . . 1 . 1 . 1 . 1 . 1 . 1 . 1 . . . . 1 . Unlock Access 7 | . . . . . 1 . 1 . 1 . 1 . 1 . 1 . 1 . . . . . . Seal Access 1 | . . . . . . . . . . . . . . . . . . . . . . 1 . Unauthorized Hacks 9 | . 7 . . . 1 . 1 . . . . . . . . . . . . . . . . Terminals 9 | . 7 . . . 1 . 1 . . . . . . . . . . . . . . . . Botnet 3 | . 2 . . . . . 1 . . . . . . . . . . . . . . . . Skim 6 | . 5 . . . 1 . . . . . . . . . . . . . . . . . . Fabricators . | . . . . . . . . . . . . . . . . . . . . . . . . Repair Stations . | . . . . . . . . . . . . . . . . . . . . . . . . Recycling Units . | . . . . . . . . . . . . . . . . . . . . . . . . Scanalyzers . | . . . . . . . . . . . . . . . . . . . . . . . . Garrison Access . | . . . . . . . . . . . . . . . . . . . . . . . . Data Cores Recovered . | . . . . . . . . . . . . . . . . . . . . . . . . Used . | . . . . . . . . . . . . . . . . . . . . . . . . Hacking Detections 37 | . 6 . . . 2 . 2 1 . 3 2 1 3 1 1 3 1 2 . 3 . 5 1 Full Trace Events 6 | . . . . . 1 . . 1 . . . 1 . 1 . 1 . 1 . . . . . Feedback Events . | . . . . . . . . . . . . . . . . . . . . . . . . Feedback Blocked . | . . . . . . . . . . . . . . . . . . . . . . . . Robot Schematics Acquired . | . . . . . . . . . . . . . . . . . . . . . . . . Robots Built . | . . . . . . . . . . . . . . . . . . . . . . . . Authchips . | . . . . . . . . . . . . . . . . . . . . . . . . Time . | . . . . . . . . . . . . . . . . . . . . . . . . Total Robot Build Rating . | . . . . . . . . . . . . . . . . . . . . . . . . Part Schematics Acquired . | . . . . . . . . . . . . . . . . . . . . . . . . Parts Built . | . . . . . . . . . . . . . . . . . . . . . . . . Authchips . | . . . . . . . . . . . . . . . . . . . . . . . . Time . | . . . . . . . . . . . . . . . . . . . . . . . . Total Part Build Rating . | . . . . . . . . . . . . . . . . . . . . . . . . Parts Repaired 1 | . . . . . . . . . . . 1 . . . . . . . . . . . . Time 25 | . . . . . . . . . . . 25 . . . . . . . . . . . . Parts Recycled . | . . . . . . . . . . . . . . . . . . . . . . . . Recycled Matter . | . . . . . . . . . . . . . . . . . . . . . . . . Retrieved Matter . | . . . . . . . . . . . . . . . . . . . . . . . . Retrieved Components . | . . . . . . . . . . . . . . . . . . . . . . . . Parts Scanalyzed . | . . . . . . . . . . . . . . . . . . . . . . . . Part Schematics Acquired . | . . . . . . . . . . . . . . . . . . . . . . . . Parts Damaged . | . . . . . . . . . . . . . . . . . . . . . . . . Bothacking | -11 -10 -10 -10 -9 -8 -8 -8 -8 -7 -7 -6 -6 -5 -5 -5 -5 -4 -4 -3 -2 -2 -1 -1 ------------ Run | Yrd Mat Min Exi Min Mat Gar Mat Gar Fac Gar Fac Gar Fac Gar Fac Gar Fac Gar Res Res DSF Acc Com Used RIF Installer 8 | . . . . . . 2 . 1 . 1 . 1 . 1 . 1 . 1 . . . . . Coupler Efficiency 1 | . . . . . . . . 1 . . . . . . . . . . . . . . . Hotswap 1 | . . . . . . . . . . 1 . . . . . . . . . . . . . Threat Obfuscator 2 | . . . . . . 1 . . . . . . . . . 1 . . . . . . . Robot Detection 1 | . . . . . . . . . . . . . . . . . . 1 . . . . . Patrol Navigation 1 | . . . . . . . . . . . . . . 1 . . . . . . . . . Alert ID Control 1 | . . . . . . . . . . . . 1 . . . . . . . . . . . Robots Hacked 46 | . . . . . . 3 3 1 . . 9 1 . 3 6 1 . 13 5 . . 1 . Non-combat 2 | . . . . . . . . . . . 1 . . . . . . . . . . 1 . Combat 44 | . . . . . . 3 3 1 . . 8 1 . 3 6 1 . 13 5 . . . . Robot Hacks Applied 54 | . . . . . . 4 4 1 . . 14 1 . 3 6 1 . 13 5 . . 2 . parse_system 1 | . . . . . . 1 . . . . . . . . . . . . . . . . . purge_threat 2 | . . . . . . . . . . . 2 . . . . . . . . . . . . reprogram_traps 1 | . . . . . . . . . . . 1 . . . . . . . . . . . . map_route 1 | . . . . . . . . . . . . . . . . . . . . . . 1 . mark_security 1 | . . . . . . . . . . . . . . . . . . . . . . 1 . find_garrison 4 | . . . . . . . 1 . . . 2 . . . . . . . 1 . . . . amplify_resonance 5 | . . . . . . . . 1 . . 3 . . . . . . 1 . . . . . disable_weapons 1 | . . . . . . . . . . . . . . . 1 . . . . . . . . overwrite_iff 15 | . . . . . . 1 2 . . . 6 . . . . . . 5 1 . . . . formatsys_high 23 | . . . . . . 2 1 . . . . 1 . 3 5 1 . 7 3 . . . . Relay Couplers Released 77 | . . . . . . 18 . . . 21 . 8 . 12 . 14 . 4 . . . . . Machine Destruction 67 | . . . . . . 14 . . . 18 . 5 . 12 . 14 . 4 . . . . . Programmers 10 | . . . . . . 4 . . . 3 . 3 . . . . . . . . . . . Attached 24 | . . . . . . 2 2 . . 2 4 2 1 . 2 3 . 4 1 . . 1 . Fabnet Peak Effective % . | . . . . . . . . . . . . . . . . . . . . . . . . Robots Rewired 13 | . . . . . . 3 . . . . . 3 . . . 2 . 5 . . . . . Allies Hacked 4 | . . . . . . . . . . . . . . 1 . . . . 3 . . . . Hacks Repelled . | . . . . . . . . . . . . . . . . . . . . . . . . Allies | -11 -10 -10 -10 -9 -8 -8 -8 -8 -7 -7 -6 -6 -5 -5 -5 -5 -4 -4 -3 -2 -2 -1 -1 -------- Run | Yrd Mat Min Exi Min Mat Gar Mat Gar Fac Gar Fac Gar Fac Gar Fac Gar Fac Gar Res Res DSF Acc Com Total Allies 61 | . . . . . . 5 3 . . 2 6 6 . 7 5 5 . 17 5 . . . . Largest Group 11 | . . . . . . 3 3 1 . 2 2 5 1 5 5 2 . 11 3 . . . . Highest-Rated Group 589 | . . . . . . 80 80 15 . 64 64 288 80 245 245 172 . 589 175 . . . . Highest-Rated Ally 116 | . . . . . . 40 40 15 . 39 47 95 80 80 80 92 . 116 85 . . . . Total Orders 1 | . . . . . . . . . . . . . 1 . . . . . . . . . . EXPLORE 1 | . . . . . . . . . . . . . 1 . . . . . . . . . . Ally Attacks 364 | . . . . . . 20 30 1 . . 33 44 6 27 48 36 . 73 46 . . . . Total Damage 10595 | . . . . . . 165 465 . . . 861 1239 47 1152 1897 1189 . 1987 1593 . . . . Kills 68 | . . . . . . 1 5 . . . 8 11 . 8 14 6 . 13 2 . . . . Allies Corrupted 2 | . . . . . . . . . . . . . . . 1 . . . 1 . . . . Allies Melted 4 | . . . . . . . . . . . . . . . 2 . . 1 1 . . . . Field Lobotomies 1 | . . . . . . . . . . . . . . . . . . . 1 . . . . Intel | -11 -10 -10 -10 -9 -8 -8 -8 -8 -7 -7 -6 -6 -5 -5 -5 -5 -4 -4 -3 -2 -2 -1 -1 ------- Run | Yrd Mat Min Exi Min Mat Gar Mat Gar Fac Gar Fac Gar Fac Gar Fac Gar Fac Gar Res Res DSF Acc Com Robot Analysis Total 2 | . 2 . . . . . . . . . . . . . . . . . . . . . . Derelict Logs Recovered 1 | . . . . 1 . . . . . . . . . . . . . . . . . . . Drone Launches 2 | . . . . . . . . . . . . . 2 . . . . . . . . . . Drone Recoveries . | . . . . . . . . . . . . . . . . . . . . . . . . Exploration | -11 -10 -10 -10 -9 -8 -8 -8 -8 -7 -7 -6 -6 -5 -5 -5 -5 -4 -4 -3 -2 -2 -1 -1 ------------- Run | Yrd Mat Min Exi Min Mat Gar Mat Gar Fac Gar Fac Gar Fac Gar Fac Gar Fac Gar Res Res DSF Acc Com Turns Passed 25791 | . 947 88 400 929 1344 1781 1266 257 473 2501 2809 851 743 1748 1373 2283 852 1464 2838 287 40 370 147 Spaces Moved 10387 | 1 543 56 233 285 454 581 522 176 356 791 1114 351 255 404 409 646 220 515 1041 304 83 800 247 Core 185 | . . . . . . . . . . 9 . . . . . . . . 21 . . . 155 Treads 5802 | . 54 56 233 285 454 581 398 . . 440 286 201 255 305 237 646 220 515 636 . . . . Legs 679 | 1 489 . . . . . . . . 189 . . . . . . . . . . . . . Wheels 2066 | . . . . . . . 124 176 356 144 782 150 . 99 172 . . . 63 . . . . Hover 160 | . . . . . . . . . . 9 46 . . . . . . . 30 . . . 75 Flight 1495 | . . . . . . . . . . . . . . . . . . . 291 304 83 800 17 Fastest Speed 37 | 120 120 160 160 240 160 240 105 105 105 105 125 140 243 245 246 246 247 246 37 39 39 42 45 Average Speed 198 | 120 137 160 170 240 211 269 195 105 105 263 192 199 248 380 254 301 298 255 182 39 41 43 55 Slowest Speed 2150 | 120 190 160 240 240 400 400 400 105 105 1350 860 245 330 560 570 570 490 326 2150 39 45 45 70 Overloaded Moves . | . . . . . . . . . . . . . . . . . . . . . . . . Propulsion Burnouts . | . . . . . . . . . . . . . . . . . . . . . . . . Robots Hopped 23 | . . . . . . . . . . . . . . . . . . . 3 . . 20 . Cave-ins Triggered . | . . . . . . . . . . . . . . . . . . . . . . . . Exploration Rate (%) 39 | 1 87 23 60 74 42 53 49 39 12 77 30 45 10 66 18 59 6 61 35 6 71 19 12 Regions Visited 23 Branch Regions 4 Pre-discovered Areas 1 | . . . . 1 . . . . . . . . . . . . . . . . . . . Known Exits Taken 8 | . . . . . 1 . 1 . 1 . 1 . 1 . 1 . 1 . . 1 . . . Unknown Exits Taken 7 | 1 1 1 1 1 . . . . . . . . . . . . . . 1 . . 1 . Scrap Searched 1 | . . . . 1 . . . . . . . . . . . . . . . . . . . Spaces Dug 34 | . . . . . . 8 . . . . . . . . 22 . . . 4 . . . . Terrain Destroyed 955 | . 33 . . 30 47 12 52 . . 25 129 23 65 56 100 178 9 5 191 . . . . Melee . | . . . . . . . . . . . . . . . . . . . . . . . . Projectile 116 | . . . . . 18 . 19 . . . 10 . 4 1 8 5 9 5 37 . . . . AOE 839 | . 33 . . 30 29 12 33 . . 25 119 23 61 55 92 173 . . 154 . . . . Terrain Rammed . | . . . . . . . . . . . . . . . . . . . . . . . . Walls Destroyed . | . . . . . . . . . . . . . . . . . . . . . . . . Machines Disabled . | . . . . . . . . . . . . . . . . . . . . . . . . Actions | -11 -10 -10 -10 -9 -8 -8 -8 -8 -7 -7 -6 -6 -5 -5 -5 -5 -4 -4 -3 -2 -2 -1 -1 --------- Run | Yrd Mat Min Exi Min Mat Gar Mat Gar Fac Gar Fac Gar Fac Gar Fac Gar Fac Gar Res Res DSF Acc Com Total 13691 | . 675 55 236 520 680 708 657 211 434 1052 1565 440 312 540 581 834 325 632 1617 471 88 802 256 Wait 1458 | . 54 . 1 222 80 21 21 2 54 81 245 14 12 35 33 64 44 23 269 164 6 13 . Move 10328 | . 542 55 232 284 454 580 522 175 356 790 1114 350 255 403 409 645 220 513 1034 303 82 763 247 Hop 19 | . . . . . . . . . . . . . . . . . . . 3 . . 16 . Pick Up 117 | . 4 . 1 4 17 8 6 . 5 8 17 4 4 5 11 9 . 6 5 1 . 2 . Fast Attach 166 | . 7 . . . 8 4 15 . 1 16 18 6 3 4 13 11 13 2 41 1 . 2 1 Attach 107 | . 3 . . 1 8 2 5 . 1 5 14 2 7 5 10 8 3 6 22 1 . 3 1 Detach 30 | . 3 . . 1 . . 1 . . . 4 . 1 2 2 . 2 2 9 . . . 3 Swap 132 | . 3 . 1 3 12 10 7 2 1 3 20 6 3 5 8 11 2 10 25 . . . . Drop 134 | . 10 . 1 . 12 6 13 . 5 13 17 8 4 5 8 5 3 6 15 . . 1 2 Fire 1068 | . 48 . . 5 89 61 67 24 11 85 116 43 23 50 87 73 38 52 192 1 . 2 1 Melee . | . . . . . . . . . . . . . . . . . . . . . . . . Ram 2 | . . . . . . . . . . . . . . . . . . . 1 . . . 1 Kick 1 | . 1 . . . . . . . . . . . . . . . . . . . . . . Crush 1 | . . . . . . . . . . . . . . . . . . . 1 . . . . Escape Stasis 128 | . . . . . . 16 . 8 . 51 . 7 . 26 . 8 . 12 . . . . . Rewire . | . . . . . . . . . . . . . . . . . . . . . . . . Trap . | . . . . . . . . . . . . . . . . . . . . . . . . Miscellaneous . | . . . . . . . . . . . . . . . . . . . . . . . . Route ------- -11/Scrapyard -10/Materials (discovered 4 exits: [*Mat x3] / [*Min]) -10/Mines -10/Exiles -9/Mines -8/Materials (discovered 3 exits: *Fac x2 / Gar) -8/Garrison (discovered 3 exits: *Mat x3) -8/Materials (discovered 2 exits: *Fac / Gar) -8/Garrison -7/Factory -7/Garrison (discovered 3 exits: *Fac x3) -6/Factory -6/Garrison -5/Factory -5/Garrison (discovered 3 exits: *Fac x3) -5/Factory -5/Garrison (discovered 2 exits: *Fac x2) -4/Factory -4/Garrison (discovered 2 exits: *Res x2) -3/Research -2/Research -2/DSF -1/Access -1/Command History --------- Turn | Location | Event 1 | -11/Scrapyard | Discovered new exit (range 0) 1 | -11/Scrapyard | Entered Materials 291 | -10/Materials | Discovered new exit (range 16) 300 | -10/Materials | Build established: Mutant 549 | -10/Materials | Discovered new exit (range 4) 669 | -10/Materials | Discovered new exit (range 15) 901 | -10/Materials | Discovered new exit (range 14) 948 | -10/Materials | Entered Mines 1030 | -10/Mines | Deemed a non-threat by the Exiles lab entrance 1030 | -10/Mines | Discovered new exit (range 5) 1036 | -10/Mines | Entered Exiles 1075 | -10/Exiles | Met 8R-AWN 1102 | -10/Exiles | Met EX-HEX 1145 | -10/Exiles | Met EX-BIN 1168 | -10/Exiles | Aligned with FarCom system 1169 | -10/Exiles | Given EX-Vault access code 1208 | -10/Exiles | Opened EX-Vault 1217 | -10/Exiles | Found Field Lobotomy Kit 1254 | -10/Exiles | Warned to stay clear of 0b10 Research branches 1275 | -10/Exiles | Exiles lab attacked by MAIN.C 1402 | -10/Exiles | Discovered new exit (range 14) 1436 | -10/Exiles | Left Exiles lab with Field Lobotomy Kit 1436 | -10/Exiles | Entered Mines 1507 | -9/Mines | Met a Derelict bent on vengeance 1695 | -9/Mines | Met a Derelict shopkeep closing up shop 1945 | -9/Mines | Assembled infested the area 1950 | -9/Mines | Assisted by a Guerilla fighting off Assembled 2348 | -9/Mines | Discovered new exit (range 8) 2365 | -9/Mines | Entered Materials 2365 | -8/Materials | Evolved 4 slots: Propulsion x2, Utility x2 2861 | -8/Materials | Discovered new exit (range 14) 3276 | -8/Materials | Lost 10 parts (1p4n2u3w) 3380 | -8/Materials | Discovered new exit (range 10) 3559 | -8/Materials | Garrison activated, responded to threat 3613 | -8/Materials | Build established: Scavenger-Mutant 3709 | -8/Materials | Identified exit to Garrison 3709 | -8/Materials | Entered Garrison 3869 | -8/Garrison | Triggered checkpoint 3899 | -8/Garrison | Triggered checkpoint 3920 | -8/Garrison | Garrison Relay disabled 4092 | -8/Garrison | Triggered checkpoint 4311 | -8/Garrison | Discovered new exit (range 12) 4317 | -8/Garrison | Triggered checkpoint 4337 | -8/Garrison | Discovered new exit (range 5) 4429 | -8/Garrison | Triggered checkpoint 4482 | -8/Garrison | Garrison Relay disabled 4691 | -8/Garrison | Triggered checkpoint 4727 | -8/Garrison | Garrison Relay disabled 4973 | -8/Garrison | Installed Relay Interface Framework 5013 | -8/Garrison | Garrison Relay disabled 5039 | -8/Garrison | Triggered checkpoint 5128 | -8/Garrison | Discovered new exit (range 11) 5275 | -8/Garrison | Build established: Bothacker-Mutant 5294 | -8/Garrison | Expanded RIF knowledge: Threat Obfuscation 5490 | -8/Garrison | Entered Materials 5490 | -8/Materials | Accompanied by 2 allies 5805 | -8/Materials | Core integrity fell below 50% 5844 | -8/Materials | Lost 4 parts (1p1n1u1w) 6609 | -8/Materials | Discovered new exit (range 15) 6756 | -8/Materials | Identified exit to Garrison 6756 | -8/Materials | Entered Garrison 6756 | -8/Garrison | Accompanied by 1 ally 6814 | -8/Garrison | Expanded RIF knowledge: Coupler Efficiency 6887 | -8/Garrison | Triggered checkpoint 6888 | -8/Garrison | Triggered checkpoint 6914 | -8/Garrison | Build established: Mutant 6961 | -8/Garrison | Discovered new exit (range 14) 7013 | -8/Garrison | Entered Factory 7013 | -7/Factory | Evolved 2 slots: Utility x2 7486 | -7/Factory | Identified exit to Garrison 7486 | -7/Factory | Entered Garrison 7516 | -7/Garrison | Triggered checkpoint 7588 | -7/Garrison | Triggered checkpoint 7656 | -7/Garrison | Triggered checkpoint 7818 | -7/Garrison | Discovered new exit (range 12) 7940 | -7/Garrison | Triggered checkpoint 7940 | -7/Garrison | Garrison Relay disabled 8202 | -7/Garrison | Triggered checkpoint 8276 | -7/Garrison | Build established: Bothacker-Mutant 8362 | -7/Garrison | Lost 4 parts (1p3n) 8452 | -7/Garrison | Triggered checkpoint 8557 | -7/Garrison | Discovered new exit (range 12) 9074 | -7/Garrison | Triggered checkpoint 9147 | -7/Garrison | Lost 4 parts (3n1w) 9238 | -7/Garrison | Triggered checkpoint 9371 | -7/Garrison | Core integrity fell below 50% 9480 | -7/Garrison | Garrison Relay disabled 9550 | -7/Garrison | Rescued a captive Derelict 9550 | -7/Garrison | Rescued a captive Derelict 9759 | -7/Garrison | Expanded RIF knowledge: Hotswap 9820 | -7/Garrison | Triggered checkpoint 9864 | -7/Garrison | Garrison Relay disabled 9884 | -7/Garrison | Garrison Relay disabled 9958 | -7/Garrison | Discovered new exit (range 12) 9987 | -7/Garrison | Entered Factory 9987 | -6/Factory | Accompanied by 2 allies 9987 | -6/Factory | Evolved 2 slots: Power x1, Utility x1 10172 | -6/Factory | Build established: Botlord-Mutant 10337 | -6/Factory | First assault squad dispatched 10401 | -6/Factory | Lost 3 allies 10768 | -6/Factory | Build established: Bothacker-Mutant 11336 | -6/Factory | System corruption reached 10% 11989 | -6/Factory | Found Prototype Launcher 11989 | -6/Factory | Identified Scatter Rocket Array 12040 | -6/Factory | Repaired Fission Core 12353 | -6/Factory | Lost 4 parts (2n2u) 12794 | -6/Factory | Build established: Mutant 12796 | -6/Factory | Identified exit to Garrison 12796 | -6/Factory | Entered Garrison 12880 | -6/Garrison | Found embedded Infiltrators 12942 | -6/Garrison | Triggered checkpoint 13006 | -6/Garrison | Garrison Relay disabled 13254 | -6/Garrison | Spotted B-75 Beast 13256 | -6/Garrison | Triggered checkpoint 13257 | -6/Garrison | Triggered checkpoint 13260 | -6/Garrison | Triggered checkpoint 13276 | -6/Garrison | Allies destroyed B-75 Beast 13284 | -6/Garrison | Destroyed 7 combat bots 13304 | -6/Garrison | Build established: Bothacker-Mutant 13533 | -6/Garrison | Discovered new exit (range 13) 13608 | -6/Garrison | Expanded RIF knowledge: Alert ID Control 13626 | -6/Garrison | Triggered checkpoint 13647 | -6/Garrison | Entered Factory 13647 | -5/Factory | Accompanied by 1 ally 13647 | -5/Factory | Evolved 2 slots: Utility x2 14211 | -5/Factory | P-70 Sage assimilated allied OV-GQ0(x) 14219 | -5/Factory | Garrison activated, responded to threat 14271 | -5/Factory | Lost 8 parts (1p2n4u1w) 14390 | -5/Factory | Identified exit to Garrison 14390 | -5/Factory | Entered Garrison 14434 | -5/Garrison | Triggered checkpoint 14547 | -5/Garrison | Garrison Relay disabled 14824 | -5/Garrison | Triggered checkpoint 14868 | -5/Garrison | Destroyed 8 combat bots 15037 | -5/Garrison | Discovered new exit (range 8) 15146 | -5/Garrison | Triggered checkpoint 15204 | -5/Garrison | Found embedded Infiltrators 15271 | -5/Garrison | Garrison Relay disabled 15569 | -5/Garrison | Build established: Botlord-Mutant 15596 | -5/Garrison | Expanded RIF knowledge: Patrol Navigation 15660 | -5/Garrison | Triggered checkpoint 15708 | -5/Garrison | Triggered checkpoint 15796 | -5/Garrison | Triggered checkpoint 15796 | -5/Garrison | P-70 Sage assimilated allied YA-Q0M(x) 15930 | -5/Garrison | Door terminal overloaded 15930 | -5/Garrison | Rescued a captive Derelict 15931 | -5/Garrison | Rescued a captive Derelict 15968 | -5/Garrison | Triggered checkpoint 16026 | -5/Garrison | Garrison Relay disabled 16087 | -5/Garrison | Discovered new exit (range 14) 16125 | -5/Garrison | Discovered new exit (range 53) 16125 | -5/Garrison | Discovered new exit (range 66) 16125 | -5/Garrison | Discovered new exit (range 7) 16138 | -5/Garrison | Entered Factory 16138 | -5/Factory | Accompanied by 5 allies 16575 | -5/Factory | Lost 5 allies 16850 | -5/Factory | Destroyed 7 combat bots 16862 | -5/Factory | Build established: Bothacker-Mutant 16885 | -5/Factory | Core integrity fell below 50% 17038 | -5/Factory | First assault squad dispatched 17511 | -5/Factory | Identified exit to Garrison 17511 | -5/Factory | Entered Garrison 17532 | -5/Garrison | Build established: Mutant 17564 | -5/Garrison | Expanded RIF knowledge: Threat Obfuscation 17609 | -5/Garrison | Heavy support dispatched to Factory 17635 | -5/Garrison | Triggered checkpoint 17679 | -5/Garrison | Triggered checkpoint 17685 | -5/Garrison | Garrison Relay disabled 17736 | -5/Garrison | Lost 6 parts (1n3u2w) 17745 | -5/Garrison | Lost 3 allies 17930 | -5/Garrison | Triggered checkpoint 17935 | -5/Garrison | Found embedded Infiltrators 18034 | -5/Garrison | Garrison Relay disabled 18293 | -5/Garrison | Triggered checkpoint 18339 | -5/Garrison | Triggered checkpoint 18341 | -5/Garrison | Triggered checkpoint 18518 | -5/Garrison | Triggered checkpoint 18531 | -5/Garrison | Learned Factory security intel 18610 | -5/Garrison | Build established: Scavenger-Mutant 18847 | -5/Garrison | Discovered new exit (range 14) 19363 | -5/Garrison | Discovered new exit (range 13) 19515 | -5/Garrison | Triggered checkpoint 19534 | -5/Garrison | Core integrity fell below 20% 19551 | -5/Garrison | Heavy support dispatched to Factory 19679 | -5/Garrison | Garrison Relay disabled 19794 | -5/Garrison | Entered Factory 19794 | -4/Factory | Evolved 2 slots: Utility x2 20073 | -4/Factory | First assault squad dispatched 20294 | -4/Factory | Lost 4 parts (1p2u1w) 20410 | -4/Factory | Garrison activated, responded to threat 20646 | -4/Factory | Identified exit to Garrison 20646 | -4/Factory | Entered Garrison 20884 | -4/Garrison | Triggered checkpoint 21023 | -4/Garrison | Garrison Relay disabled 21025 | -4/Garrison | Build established: Botlord-Mutant 21116 | -4/Garrison | Expanded RIF knowledge: Robot Detection 21232 | -4/Garrison | Spotted B-86 Titan 21234 | -4/Garrison | Assimilated Titan 7a with formatsys_high 21238 | -4/Garrison | Triggered checkpoint 21239 | -4/Garrison | Triggered checkpoint 21302 | -4/Garrison | Lost 9 allies 21306 | -4/Garrison | Triggered checkpoint 21617 | -4/Garrison | Discovered new exit (range 14) 21796 | -4/Garrison | Spotted B-90 Cyclops 21799 | -4/Garrison | Rewired B-75 Beast 22046 | -4/Garrison | Discovered new exit (range 10) 22110 | -4/Garrison | Entered Research 22110 | -3/Research | Accompanied by 3 allies 22110 | -3/Research | Evolved 2 slots: Utility x2 22757 | -3/Research | System corruption reached 10% 22791 | -3/Research | Cargo convoy interrupted 22802 | -3/Research | Lost 6 parts (1p4u1w) 22926 | -3/Research | Lost 4 parts (1p2n1u) 23773 | -3/Research | Spotted B-86 Titan 23816 | -3/Research | Destroyed B-86 Titan 23905 | -3/Research | Lost 3 parts (1p1n1u) 24110 | -3/Research | Lost 6 parts (1n2u3w) 24393 | -3/Research | System corruption reached 30% 24432 | -3/Research | Lost 5 parts (1p2n2w) 24665 | -3/Research | Garrison activated, responded to threat 24706 | -3/Research | Core integrity fell below 50% 24758 | -3/Research | Lost 5 parts (1p2n1u1w) 24787 | -3/Research | Assimilated H-77 Assassin with FLK Orb 24826 | -3/Research | Spotted B-86 Titan 24838 | -3/Research | Core integrity fell below 20% 24842 | -3/Research | Lost 4 parts (2u2w) 24945 | -3/Research | Discovered new exit (range 10) 24948 | -3/Research | Entered another Research area 24948 | -2/Research | Evolved 2 slots: Propulsion x2 25116 | -2/Research | Build established: Bothacker-Mutant 25235 | -2/Research | Identified exit to DSF 25235 | -2/Research | Entered DSF 25257 | -2/DSF | Additional patrols routed to DSF 25269 | -2/DSF | Discovered new exit (range 14) 25275 | -2/DSF | Entered Access 25275 | -1/Access | Evolved 2 slots: Propulsion x2 25642 | -1/Access | Discovered new exit (range 7) 25645 | -1/Access | Entered Command 25714 | -1/Command | Spotted M Guard 25715 | -1/Command | Spotted Combat Programmer 25715 | -1/Command | Spotted Combat Programmer 25737 | -1/Command | Core integrity fell below 50% 25746 | -1/Command | Lost 4 parts (1n2u1w) 25771 | -1/Command | Core integrity fell below 20% 25791 | -1/Command | Spotted Alpha 7 25792 | -1/Command | Destroyed by Combat Programmer with EMDS Last Messages --------------- 25759_ K-01 Serf cleans the Terminal. 25762_ Penetrated by Slug. 25762_ Slug penetrates Wall. 25766_ EMDS Slug penetrates Wall. 25768_ Penetrated by EMDS Slug. 25777_ EMDS Slug penetrates Door. 25777_ Door malfunctions. 25783_ EMDS Slug penetrates Wall. 25785_ Penetrated by EMDS Slug. 25786_ Slammed into Combat Programmer. 25787_ ALERT: Hostiles spotted, dispatching reinforcements to Terminal C023. 25787_ Penetrated by EMDS Slug. 25787_ Graphene Brace destroyed. 25787_ Relay Coupler [Sentry] destroyed. 25787_ EMDS Slug penetrates Wall. 25790_ Penetrated by EMDS Slug. 25790_ EMDS Slug penetrates Wall. 25790_ Slug penetrates Wall. 25792_ Penetrated by EMDS Slug. Map ----- +----------------------------------------------------+ | ?????# #????????????????????????????????????????? | | ?????# #????????????????????????????????????????? | | ?????# #????????????????????????????????????????? | | ?????# #????????????????????????????????????????? | | ?????# #????????????????????????????????????????? | | ?????# #????????????????????????????????????????? | | ?????# #????????????????????????????????????????? | | ?????# #????????????????????????????????????????? | | ?????# #????????????????????????????????????????? | | ?????# #######??????????????????????????????????? | | ?????# / ???????????????????????????? | | ?????# #######??????????????????????????????????? | | ????## ##????????????????E?E????????????????????? | | ????# #????????????????????BB?????????????????? | | ????# "" #????????????????????BB?????????????????? | | ????# T" +???????????????????????????????????????? | | ????# #???????????????????????????????????????? | | ????## ##?????????????????????################??? | | ?????# #??????????????????????# #??? | | ?????# #??????????????????????# = #??? | | ?????# #??????????????????????# #??? | | ?????# #??????????????????????# #??? | | ?????# #??????????????????????# #??? | | ?????# #???######????????###### #??? | | ?????# ##### ########## ####+###/#######??? | | ?????# 7 @ = p #???????? | | ?????# Y p #???????? | | ?????#+###### ########## ### ###+####??????? | | ????? ????##+###????????##+###?#+# #??????? | | ????? ????? ??????????? ?????# ! #??????? | | ????""" ???? ??????????? ?????# = #??????? | | ????"T ??? ????????? ????# #??????? | | ???#""" ?? ????????? ????# #??????? | | ???# ?# ??????? ???# [ #??????? | | ???? # ??????? ] ???########??????? | | ?????######?######???????#######?????????????????? | | | | | | | | | | | | | | | | | | | | | | | | | | | | | +----------------------------------------------------+ Best States ------------- Heat Dissipation 90 Coolant Potential 80 Energy Generation 44 Energy Capacity 965 Matter Stores 502 Matter Capacity 550 Sight Range 16 Terrain Scan Density 10 Cloak Strength 3 Power Amplification 30 EM Shielding 2 Corruption Containment 8 Corruption Block 15 Armor Coverage 1200 Resistance: KI 20 Resistance: EM 15 Propulsion Shielding 33 Utility Shielding 90 Evasion (%) 70 Targeting Accuracy 6 Target Analysis 12 Recoil Reduction 4 Particle Charging 20 Offensive Hacking 10 Defensive Hacking 10 Relay Coupler Types 4 Relay Coupler Value 125 Authchip Count 1 Item Schematics ----------------- None Robot Schematics ------------------ None Fabricated ------------ Nothing Alien Tech Used ----------------- None Achievements -------------- None Challenges ------------ None Game ------ Seed ThrowingSuperdenseRigger Manual? 0 Play Time 03:28:37 Cumulative 118.9 hours Start 2024.11.19 @ 21:03:08 End 2024.11.20 @ 00:46:47 Sessions 1 Manual Loads 0 Difficulty Rogue Special Mode None Game No. 98 Rogue 79 Adventurer 16 Explorer 3 Win Type - Total 8 Types 6/0/1/1/0/0/0/0/0 Lore% 26 Gallery% 63 Achievement% 57 Wizard Run 0 Options --------- Layout 2 ASCII 0 Keyboard 0 Movement Mouse Keybinds 1 Fullscreen 1 Font 24/Terminus Map View 50x44 Zoom Use 0% Tactical HUD 1 Map Filters NONE Filters NONE Steam 1 RUN: 74bd5fa9-b79d-401c-88e5-af171fac374d